[Event "Turkish-ch Youth U17 2024"]
[Site "Belek Antalya"]
[Date "2024.01.26"]
[Round "8"]
[White "Alagoz, Zumra Meryem"]
[Black "Kayis, Merve"]
[Result "0-1"]
[ECO "A03"]
[WhiteElo "1706"]
[BlackElo "1510"]
[Annotator "NA RC COMBH"]
[PlyCount "34"]
[EventDate "2024.01.21"]
[EventType "swiss"]
[EventCountry "TUR"]
[SourceTitle "playchess.com"]
[Source "ChessBase"]
[SourceQuality "1"]
[TimeControl "5400+30"]

1. f4 {[%emt 0:01:00]} Nf6 {[%emt 0:02:00]} 2. Nf3 {[%emt 0:00:30]} d5 {[%emt 0:00:30]} 3. g3 {[%emt 0:00:30]} e6 {[%emt 0:00:30]} 4. Bg2 {[%emt 0:00:30]} Be7 {[%emt 0:00:30]} 5. d3 {[%emt 0:00:30]} b6 {[%emt 0:00:30]} 6. O-O {[%emt 0:00:30]} Bb7 {[%emt 0:00:30]} 7. e3 {[%emt 0:00:30]} O-O {[%emt 0:00:30]} 8. b3 {[%emt 0:00:30]} c5 {[%emt 0:20:30]} 9. Ne5 {[%emt 0:35:30]} Nc6 {[%emt 0:00:30]} 10. Bb2 {[%emt 0:03:30]} Rc8 {[%emt 0:17:30]} 11. Nd2 {[%emt 0:00:30]} Qc7 {[%emt 0:03:30]} 12. Ng4 {[%emt 0:08:30]} Nd7 {[%emt 0:09:30]} 13. Nf3 {[%emt 0:11:30]} f5 {[%emt 0:15:30]} 14. Nge5 {[%emt 0:00:30]} Bf6 {[%emt 0:00:30]} 15. Rf2 {[%emt 0:00:30]} Ba6 {[%emt 0:05:34]} 16. Ba3 {[%emt 0:15:24]} Nd8 {[%emt 0:00:30]} 17. Bf1 {[%emt 0:00:30]} Re8 {[%emt 0:12:11]} 0-1

[Event "Turkish-ch Youth U17 2024"]
[Site "Belek Antalya"]
[Date "2024.01.26"]
[Round "8"]
[White "Kayan, Yasar Efe"]
[Black "Atis, Hasan"]
[Result "0-1"]
[ECO "B24"]
[WhiteElo "1660"]
[BlackElo "2104"]
[Annotator "NA RC"]
[PlyCount "62"]
[EventDate "2024.01.21"]
[EventType "swiss"]
[EventCountry "TUR"]
[SourceTitle "playchess.com"]
[Source "ChessBase"]
[SourceQuality "1"]
[TimeControl "5400+30"]

1. e4 {[%emt 0:03:00]} c5 {[%emt 0:05:00]} 2. Nc3 {[%emt 0:00:30]} e6 {[%emt 0:00:30]} 3. g3 {[%emt 0:00:30]} d5 {[%emt 0:00:30]} 4. d3 {[%emt 0:00:30]} Nf6 {[%emt 0:00:30]} 5. Bg2 {[%emt 0:00:00]} Be7 {[%emt 0:00:30]} 6. e5 {[%emt 0:03:00]} Nfd7 {[%emt 0:00:30]} 7. f4 {[%emt 0:02:30]} Nc6 {[%emt 0:01:30]} 8. Nf3 {[%emt 0:00:30]} b5 {[%emt 0:02:30]} 9. O-O {[%emt 0:01:30] B24: Sizilianisch (Geschlossenes System).} Qb6 {[%emt 0:05:30]} 10. Kh1 {[%emt 0:03:30]} O-O {[%emt 0:01:30]} 11. g4 {[%emt 0:02:30]} b4 {[%emt 0:03:30]} 12. Ne2 {[%emt 0:00:30]} Ba6 {[%emt 0:00:30]} 13. Rg1 {[%emt 0:01:30]} c4 {[%emt 0:17:30]} 14. d4 {[%emt 0:03:30]} c3 {[%emt 0:04:30]} 15. b3 {[%emt 0:01:30]} f6 {[%emt 0:02:30]} 16. Ng3 {[%emt 0:17:30]} fxe5 {[%emt 0:00:30]} 17. fxe5 {[%emt 0:00:30] [#]} Rxf3 $1 {[%emt 0:11:30]} 18. Bxf3 {[%emt 0:00:00]} Qxd4 {[%emt 0:00:30]} 19. Nf5 {[%emt 0:12:00]} Qxd1 {[%emt 0:03:30]} (19... exf5 20. Bxd5+ Kf8 21. Bxc6 Qxd1 22. Rxd1 $18) (19... Qxe5 $2 {is the wrong capture.} 20. Re1 exf5 (20... Qf6 $2 21. Rxe6 Qxe6 22. Bxd5 $18) 21. Rxe5 (21. Bxd5+ Kh8 $16) 21... Ndxe5 22. Bf4 $18 (22. Qxd5+ Kf8 $16) (22. gxf5 Rd8 $16) (22. Bxd5+ Kf8 $16)) 20. Nxe7+ {[%emt 0:02:30]} Nxe7 {[%emt 0:00:00]} 21. Bxd1 {[%emt 0:00:00]} Bb7 {[%emt 0:12:00]} 22. Re1 {[%emt 0:04:00]} Ng6 {[%emt 0:00:30]} 23. a3 {[%emt 0:01:30]} a5 {[%emt 0:00:30]} 24. axb4 {[%emt 0:01:30]} axb4 {[%emt 0:00:30]} 25. Rxa8+ {[%emt 0:00:30]} Bxa8 {[%emt 0:00:00]} 26. Kg2 {[%emt 0:00:00]} d4+ {[%emt 0:13:50]} 27. Kg3 $15 {[%emt 0:05:00]} Nc5 {[%emt 0:01:21]} 28. Bf3 {[%emt 0:11:30]} Bd5 {[%emt 0:06:35]} 29. Bxd5 {[%emt 0:20:14]} exd5 {[%emt 0:00:30]} 30. e6 {[%emt 0:00:30]} Kf8 {[%emt 0:00:30]} 31. Bg5 {[%emt 0:00:30]} Ne4+ {[%emt 0:04:24]} 0-1

[Event "Turkish-ch Youth U17 2024"]
[Site "Belek Antalya"]
[Date "2024.01.26"]
[Round "8"]
[White "Akin, Duru"]
[Black "Akat, Elifnaz"]
[Result "0-1"]
[ECO "B30"]
[WhiteElo "1474"]
[BlackElo "1849"]
[Annotator "NA RC COMBH"]
[PlyCount "72"]
[EventDate "2024.01.21"]
[EventType "swiss"]
[EventCountry "TUR"]
[SourceTitle "playchess.com"]
[Source "ChessBase"]
[SourceQuality "1"]
[TimeControl "5400+30"]

1. e4 {[%emt 0:02:00]} c5 {[%emt 0:01:00]} 2. Nf3 {[%emt 0:00:30]} Nc6 {[%emt 0:00:30]} 3. Bb5 {[%emt 0:00:00]} e6 {[%emt 0:00:00]} 4. Bxc6 {[%emt 0:00:00]} bxc6 {[%emt 0:00:00]} 5. d3 {[%emt 0:00:30]} Qc7 {[%emt 0:01:30]} 6. Qe2 {[%emt 0:00:00] B30: Sicilian: 2...Nc6 3 Bb5, lines without ...g6.} Ne7 {[%emt 0:00:30]} 7. Nc3 {[%emt 0:06:00]} e5 {[%emt 0:07:30]} 8. g3 {[%emt 0:01:30]} d6 {[%emt 0:00:30]} 9. h4 {[%emt 0:03:30]} h5 {[%emt 0:04:30]} 10. b3 {[%emt 0:00:30]} g6 {[%emt 0:02:30]} 11. Bb2 {[%emt 0:04:30]} Bg4 {[%emt 0:06:30]} 12. Nd1 {[%emt 0:07:30]} Bh6 {[%emt 0:03:30]} 13. Ne3 {[%emt 0:00:30]} Qa5+ {[%emt 0:02:30]} 14. c3 {[%emt 0:04:30]} Bxe3 {[%emt 0:00:30]} 15. Qxe3 {[%emt 0:02:30]} f6 {[%emt 0:06:30]} 16. Nd2 {[%emt 0:04:30]} d5 {[%emt 0:10:30]} (16... Rd8 $14 {feels stronger.}) 17. d4 {[%emt 0:13:30]} (17. f3 $16 Be6 18. c4) 17... exd4 {[%emt 0:12:30]} 18. cxd4 {[%emt 0:00:30]} cxd4 {[%emt 0:07:30]} 19. Bxd4 {[%emt 0:03:30]} O-O {[%emt 0:02:30]} 20. O-O {[%emt 0:13:30]} Kh7 {[%emt 0:05:30]} (20... Rae8 $1 $14 {was preferrable.}) 21. f3 {[%emt 0:04:30]} Bd7 {[%emt 0:02:30]} 22. Bc5 {[%emt 0:08:25]} Rf7 $16 {[%emt 0:02:50]} 23. Rf2 {[%emt 0:05:15]} Qc7 {[%emt 0:00:52]} 24. Rg2 {[%emt 0:01:44]} Bh3 {[%emt 0:00:22]} 25. Rh2 {[%emt 0:00:52]} Qxg3+ {[%emt 0:00:30]} 26. Kh1 {[%emt 0:00:30]} Bd7 {[%emt 0:01:57]} 27. Rg1 {[%emt 0:01:18]} Qc7 {[%emt 0:00:34]} 28. Rhg2 {[%emt 0:00:47]} Be8 {[%emt 0:02:47]} 29. f4 {[%emt 0:02:35]} dxe4 {[%emt 0:01:44]} 30. Qxe4 {[%emt 0:01:16]} Rg7 {[%emt 0:00:30]} 31. Nc4 {[%emt 0:00:30]} Nf5 {[%emt 0:00:30]} 32. Bf8 {[%emt 0:06:57]} Bf7 {[%emt 0:04:25]} 33. Bxg7 {[%emt 0:00:30]} Bd5 {[%emt 0:00:30]} 34. Qd3 {[%emt 0:00:30]} Qxf4 {[%emt 0:00:30]} 35. Bxf6 {[%emt 0:00:30]} Ng3+ {[%emt 0:00:30]} 36. Kh2 {[%emt 0:00:30]} Nf1+ {[%emt 0:00:30]} 0-1

[Event "Turkish-ch Youth U17 2024"]
[Site "Belek Antalya"]
[Date "2024.01.26"]
[Round "8"]
[White "Cetin, Defne"]
[Black "Buyuk, Ecrin Efsa"]
[Result "0-1"]
[ECO "D04"]
[WhiteElo "1350"]
[BlackElo "1976"]
[Annotator "TA"]
[PlyCount "36"]
[EventDate "2024.01.21"]
[EventType "swiss"]
[EventCountry "TUR"]
[SourceTitle "playchess.com"]
[Source "ChessBase"]
[SourceQuality "1"]
[TimeControl "5400+30"]

{[%evp 9,36,6,15,-5,-5,-4,-11,-25,-24,-28,-26,-27,-33,-37,-29,-26,-33,-31,-32,-27,-18,-37,-25,-56,0,-7,-15,-63,-69]} 1. d4 {[%emt 0:01:00]} d5 {[%emt 0:01:00]} 2. e3 {[%emt 0:00:30]} Bf5 {[%emt 0:00:00]} 3. Bd3 {[%emt 0:00:00]} e6 {[%emt 0:06:00]} 4. Nf3 {[%emt 0:09:00]} Nf6 {[%emt 0:02:30]} 5. O-O {[%emt 0:04:30]} Be7 {[%emt 0:04:30]} 6. Nbd2 {[%emt 0:06:30]} O-O {[%emt 0:04:30]} 7. Re1 {[%emt 0:02:30]} Ne4 {[%emt 0:06:30]} 8. Nf1 {[%emt 0:05:30] The position is equal.} Nd7 {[%emt 0:03:30]} 9. Ng3 {[%emt 0:16:30]} Nxg3 {[%emt 0:14:30]} 10. hxg3 {[%emt 0:00:30]} Nf6 {[%emt 0:00:00]} 11. Nd2 {[%emt 0:24:30]} c5 {[%emt 0:17:00]} 12. Bxf5 {[%emt 0:05:30]} exf5 {[%emt 0:00:00]} 13. dxc5 {[%emt 0:00:55]} Bxc5 {[%emt 0:00:00]} 14. Nf3 {[%emt 0:05:19]} Rc8 {[%emt 0:04:30]} 15. a3 {[%emt 0:02:37]} Qc7 {[%emt 0:04:30]} 16. Qd3 {[%emt 0:03:10]} Be7 {[%emt 0:09:34]} (16... Bb6 $15 17. c3 g6) 17. Nd4 {[%emt 0:03:14]} g6 {[%emt 0:00:26]} 18. Re2 {[%emt 0:01:42]} (18. Bd2 $11) 18... Ne4 {[%emt 0:03:12] Weighted Error Value: White=0.12 (very precise) /Black=0.09 (flawless) .  Mistake:       	White=1     	Black=1      Inaccurate:     	White=1     	---        OK:         	White=1     	Black=4} 0-1

[Event "Turkish-ch Youth U17 2024"]
[Site "Belek Antalya"]
[Date "2024.01.26"]
[Round "8"]
[White "Sen, Nehir"]
[Black "Unal, Beren"]
[Result "1/2-1/2"]
[ECO "E61"]
[WhiteElo "1320"]
[BlackElo "1505"]
[Annotator "NA RC COMBH"]
[PlyCount "87"]
[EventDate "2024.01.21"]
[EventType "swiss"]
[EventCountry "TUR"]
[SourceTitle "playchess.com"]
[Source "ChessBase"]
[SourceQuality "1"]
[TimeControl "5400+30"]

1. d4 {[%emt 0:01:00]} Nf6 {[%emt 0:01:00]} 2. Nf3 {[%emt 0:00:30]} g6 {[%emt 0:00:30]} 3. c4 {[%emt 0:00:00]} d6 {[%emt 0:00:00]} 4. Nc3 {[%emt 0:00:00]} Bg7 {[%emt 0:00:00]} 5. Bg5 {[%emt 0:00:00]} O-O {[%emt 0:00:30]} 6. h3 {[%emt 0:01:00]} c5 {[%emt 0:04:30]} 7. e3 {[%emt 0:01:30]} cxd4 {[%emt 0:02:30]} 8. exd4 {[%emt 0:05:30]} b6 {[%emt 0:01:30]} 9. Be2 {[%emt 0:00:30]} Bb7 {[%emt 0:00:30]} 10. O-O {[%emt 0:00:30]} Nbd7 {[%emt 0:00:30]} 11. Rc1 {[%emt 0:01:30]} h6 {[%emt 0:04:30]} 12. Bh4 {[%emt 0:00:30]} Rc8 {[%emt 0:02:30]} 13. Qb3 {[%emt 0:08:30]} a6 {[%emt 0:09:30]} 14. Rfe1 {[%emt 0:09:30]} Re8 {[%emt 0:02:30]} 15. a4 {[%emt 0:07:30]} Qc7 {[%emt 0:06:30]} 16. Nd5 {[%emt 0:26:30]} Nxd5 {[%emt 0:17:30]} 17. cxd5 {[%emt 0:00:30]} Qd8 {[%emt 0:06:30]} 18. Bc4 {[%emt 0:02:30]} g5 {[%emt 0:05:30]} 19. Bg3 {[%emt 0:00:30]} Nf6 {[%emt 0:01:30]} 20. h4 {[%emt 0:17:07]} g4 {[%emt 0:02:30]} 21. Nd2 {[%emt 0:00:05]} h5 {[%emt 0:01:30]} 22. Ne4 {[%emt 0:03:49]} Nxe4 {[%emt 0:03:30]} 23. Rxe4 {[%emt 0:00:02]} Bxd5 {[%emt 0:00:30]} 24. Ree1 {[%emt 0:01:39]} Bxc4 {[%emt 0:00:30]} 25. Rxc4 {[%emt 0:00:00]} Rxc4 {[%emt 0:06:30]} 26. Qxc4 {[%emt 0:00:20]} Qc8 {[%emt 0:02:51]} 27. Qd5 {[%emt 0:03:56]} e5 {[%emt 0:04:14]} 28. Qxd6 {[%emt 0:02:18]} exd4 {[%emt 0:00:30]} 29. Rxe8+ {[%emt 0:00:30]} Qxe8 {[%emt 0:00:30]} 30. Qxb6 {[%emt 0:01:20]} d3 {[%emt 0:10:02]} 31. Qd6 {[%emt 0:00:30]} Qe1+ {[%emt 0:00:30]} 32. Kh2 {[%emt 0:00:30]} d2 {[%emt 0:00:30]} 33. Qd8+ {[%emt 0:00:30]} Kh7 {[%emt 0:00:30]} 34. Qd3+ {[%emt 0:00:30]} f5 {[%emt 0:00:30]} 35. Qxf5+ {[%emt 0:00:30]} Kg8 {[%emt 0:00:30]} 36. Qd5+ {[%emt 0:00:30]} Kf8 {[%emt 0:00:00]} 37. Qd8+ {[%emt 0:03:10]} Kf7 {[%emt 0:00:05]} 38. Qd7+ {[%emt 0:00:47]} Kf6 {[%emt 0:00:28]} 39. Qd6+ {[%emt 0:00:00]} Kf5 {[%emt 0:01:51]} 40. Qf4+ {[%emt 0:00:22]} Kg6 {[%emt 0:01:09]} 41. Qg5+ {[%emt 0:00:18]} Kf7 {[%emt 0:00:27]} 42. Qxh5+ {[%emt 0:01:03]} Ke7 {[%emt 0:01:11]} 43. Qc5+ {[%emt 0:00:17]} Ke8 {[%emt 0:01:30]} 44. Qc8+ {[%emt 0:00:13]} 1/2-1/2

[Event "Turkish-ch Youth U17 2024"]
[Site "Belek Antalya"]
[Date "2024.01.27"]
[Round "9"]
[White "Kilic, Eray"]
[Black "Kazik, Oguz Kagan"]
[Result "1-0"]
[ECO "C96"]
[WhiteElo "2452"]
[BlackElo "1897"]
[Annotator "RC"]
[PlyCount "103"]
[EventDate "2024.01.21"]
[EventType "swiss"]
[EventCountry "TUR"]
[SourceTitle "playchess.com"]
[Source "ChessBase"]
[SourceQuality "1"]
[TimeControl "5400+30"]

1. e4 {[%emt 0:01:00]} e5 {[%emt 0:01:00]} 2. Nf3 {[%emt 0:00:00]} Nc6 {[%emt 0:00:00]} 3. Bb5 {[%emt 0:01:00]} a6 {[%emt 0:00:00]} 4. Ba4 {[%emt 0:00:30]} Nf6 {[%emt 0:00:30]} 5. O-O {[%emt 0:00:30]} Be7 {[%emt 0:00:00]} 6. d3 {[%emt 0:00:30]} b5 {[%emt 0:04:00]} 7. Bb3 {[%emt 0:00:30]} d6 {[%emt 0:00:00]} 8. c3 {[%emt 0:00:00]} O-O {[%emt 0:00:00]} 9. Re1 {[%emt 0:00:00]} Na5 {[%emt 0:06:30]} 10. Bc2 {[%emt 0:00:30]} c5 {[%emt 0:00:30]} 11. h3 {[%emt 0:02:30]} h6 {[%emt 0:02:30]} 12. d4 {[%emt 0:00:30]} Qc7 {[%emt 0:00:30]} 13. d5 {[%emt 0:00:30]} c4 {[%emt 0:03:30]} 14. b4 {[%emt 0:01:30]} cxb3 {[%emt 0:03:30]} 15. axb3 {[%emt 0:00:30]} Bd7 {[%emt 0:00:30]} 16. Bb2 {[%emt 0:00:30]} Rfc8 {[%emt 0:01:30]} 17. Bd3 {[%emt 0:00:30]} Qb6 {[%emt 0:08:30]} 18. Nbd2 {[%emt 0:04:30]} Bf8 {[%emt 0:01:30]} 19. Qe2 {[%emt 0:02:30]} Nb7 {[%emt 0:15:30]} 20. b4 {[%emt 0:01:30]} a5 {[%emt 0:02:30]} 21. Nb1 {[%emt 0:05:30]} axb4 {[%emt 0:13:30]} 22. Rxa8 {[%emt 0:01:30]} Rxa8 {[%emt 0:00:30]} 23. cxb4 {[%emt 0:00:00]} Ra4 {[%emt 0:00:30]} 24. Bc3 {[%emt 0:00:00]} Ne8 {[%emt 0:08:30]} 25. Bd2 {[%emt 0:00:30]} Nd8 {[%emt 0:01:30]} 26. Be3 {[%emt 0:03:30]} Qb7 {[%emt 0:00:30]} 27. Qb2 {[%emt 0:00:30]} Nc7 {[%emt 0:01:30]} 28. Nc3 {[%emt 0:00:30]} Ra8 {[%emt 0:00:30]} 29. Ra1 {[%emt 0:02:30]} Be7 {[%emt 0:06:06]} 30. Ra5 {[%emt 0:03:30]} f5 {[%emt 0:10:14]} 31. Rxa8 {[%emt 0:01:30]} Qxa8 {[%emt 0:02:08]} 32. exf5 {[%emt 0:00:30]} Nf7 {[%emt 0:00:00]} 33. Qb3 {[%emt 0:00:30]} Qb7 {[%emt 0:00:18]} 34. g4 {[%emt 0:00:30]} Bd8 {[%emt 0:00:30]} 35. h4 {[%emt 0:00:30]} Kf8 {[%emt 0:00:30]} 36. Be4 {[%emt 0:00:30]} Qc8 {[%emt 0:02:20]} 37. Qc2 {[%emt 0:09:30]} Na6 {[%emt 0:01:26]} 38. Na2 {[%emt 0:00:30]} Qxc2 {[%emt 0:02:23]} 39. Bxc2 {[%emt 0:00:30]} e4 {[%emt 0:00:30]} 40. Bxe4 {[%emt 0:00:30]} Bf6 {[%emt 0:03:42]} 41. g5 {[%emt 0:01:30]} hxg5 {[%emt 0:00:30]} 42. hxg5 {[%emt 0:00:30]} Bb2 {[%emt 0:00:00]} 43. Kf1 {[%emt 0:00:30]} Ne5 {[%emt 0:00:31]} 44. Nxe5 {[%emt 0:00:30]} Bxe5 {[%emt 0:00:16]} 45. f4 {[%emt 0:00:30]} Ba1 {[%emt 0:00:53]} 46. Ke2 {[%emt 0:00:30]} Bc8 {[%emt 0:01:09]} 47. Kd3 {[%emt 0:00:30]} Bb7 {[%emt 0:00:30]} 48. Bb6 {[%emt 0:00:00]} Nb8 {[%emt 0:00:24]} 49. Bc7 {[%emt 0:01:00]} Nd7 {[%emt 0:00:30]} 50. Bxd6+ {[%emt 0:00:30]} Ke8 {[%emt 0:00:30]} 51. Bc5 {[%emt 0:00:00]} Bb2 {[%emt 0:00:40]} 52. Be3 {[%emt 0:00:00]} 1-0

[Event "Turkish-ch Youth U17 2024"]
[Site "Belek Antalya"]
[Date "2024.01.27"]
[Round "9"]
[White "Atis, Hasan"]
[Black "Ilgaz, Yusuf Kerem"]
[Result "1/2-1/2"]
[ECO "C07"]
[WhiteElo "2104"]
[BlackElo "1870"]
[Annotator "NA RC"]
[PlyCount "193"]
[EventDate "2024.01.21"]
[EventType "swiss"]
[EventCountry "TUR"]
[SourceTitle "playchess.com"]
[Source "ChessBase"]
[SourceQuality "1"]
[TimeControl "5400+30"]

1. e4 {[%emt 0:08:00]} e6 {[%emt 0:01:00]} 2. d4 {[%emt 0:01:30]} d5 {[%emt 0:00:30]} 3. Nd2 {[%emt 0:03:30]} c5 {[%emt 0:00:00]} 4. Ngf3 {[%emt 0:00:30]} cxd4 {[%emt 0:00:00]} 5. exd5 {[%emt 0:00:30]} Qxd5 {[%emt 0:00:30]} 6. Bc4 {[%emt 0:00:30]} Qd7 {[%emt 0:00:30]} 7. O-O {[%emt 0:00:30]} Nc6 {[%emt 0:00:00]} 8. Re1 {[%emt 0:07:30]} a6 {[%emt 0:05:00]} 9. Ne4 {[%emt 0:01:30]} Nf6 {[%emt 0:24:30]} 10. Bf4 {[%emt 0:24:30]} Bb4 {[%emt 0:16:30]} 11. Ne5 {[%emt 0:13:30]} Nxe5 {[%emt 0:06:30]} 12. Bxe5 {[%emt 0:03:30]} Be7 {[%emt 0:02:30]} 13. Qf3 {[%emt 0:10:30]} Qc6 {[%emt 0:04:30]} 14. Bd3 {[%emt 0:02:08]} Bd7 {[%emt 0:11:30]} 15. Nxf6+ {[%emt 0:05:06]} gxf6 {[%emt 0:00:30]} 16. Be4 {[%emt 0:02:42]} fxe5 {[%emt 0:04:30]} 17. Bxc6 {[%emt 0:00:30]} Bxc6 {[%emt 0:00:00]} 18. Qd3 {[%emt 0:01:20]} Bf6 {[%emt 0:01:00]} 19. Rad1 {[%emt 0:01:14]} O-O-O {[%emt 0:00:30]} 20. c3 {[%emt 0:04:29]} Rhg8 {[%emt 0:02:34]} 21. g3 {[%emt 0:00:49]} Rg6 {[%emt 0:01:38]} 22. cxd4 {[%emt 0:01:22]} exd4 {[%emt 0:00:41]} 23. Rc1 {[%emt 0:00:30]} Rd6 {[%emt 0:01:44]} 24. Rc5 {[%emt 0:00:06]} Kb8 {[%emt 0:01:57]} 25. Rec1 {[%emt 0:00:31]} Ka7 {[%emt 0:00:20]} 26. Rxc6 {[%emt 0:02:34]} Rxc6 {[%emt 0:00:30]} 27. Rxc6 {[%emt 0:00:30]} bxc6 {[%emt 0:00:30]} 28. Qc2 {[%emt 0:00:30]} Kb6 {[%emt 0:00:30]} 29. f4 {[%emt 0:00:30]} h5 {[%emt 0:00:30]} 30. b4 {[%emt 0:00:30]} Be7 {[%emt 0:00:30]} 31. Qc4 {[%emt 0:00:30]} c5 {[%emt 0:00:30]} 32. Kg2 {[%emt 0:00:30]} Rg8 {[%emt 0:00:30]} 33. a4 {[%emt 0:02:11]} cxb4 {[%emt 0:08:01]} 34. Qxd4+ {[%emt 0:00:14]} Bc5 {[%emt 0:00:19]} 35. Qc4 {[%emt 0:01:51]} Rc8 {[%emt 0:01:42]} 36. f5 {[%emt 0:00:30]} Rc6 {[%emt 0:00:30]} 37. f6 {[%emt 0:00:30]} Ka5 {[%emt 0:00:30]} 38. Qc2 {[%emt 0:00:30]} Rc7 {[%emt 0:00:30]} 39. Qd1 {[%emt 0:00:23]} Bb6 {[%emt 0:02:12]} 40. Qxh5+ {[%emt 0:01:27]} Kxa4 {[%emt 0:00:05]} 41. Kh3 {[%emt 0:00:14]} b3 {[%emt 0:01:03]} 42. Qe5 {[%emt 0:00:30]} Rc4 {[%emt 0:00:30]} 43. Qa1+ {[%emt 0:00:30]} Kb5 {[%emt 0:00:58]} 44. Qb1 {[%emt 0:00:42]} Rb4 {[%emt 0:02:02]} 45. g4 {[%emt 0:00:01]} b2 {[%emt 0:01:20]} 46. g5 {[%emt 0:00:30]} Rb3+ {[%emt 0:00:30]} 47. Kg4 {[%emt 0:00:30]} Bd4 {[%emt 0:00:30]} 48. g6 {[%emt 0:00:30]} fxg6 {[%emt 0:00:30]} 49. f7 {[%emt 0:00:30]} Bg7 {[%emt 0:00:30]} 50. Kg5 {[%emt 0:00:30]} a5 {[%emt 0:00:30]} 51. Kxg6 {[%emt 0:00:30]} Bf8 {[%emt 0:00:00]} 52. Kh7 {[%emt 0:00:00]} a4 {[%emt 0:00:25]} 53. Kg8 {[%emt 0:00:27]} Bc5 {[%emt 0:00:29]} 54. f8=Q {[%emt 0:00:53]} Bxf8 {[%emt 0:00:30]} 55. Kxf8 {[%emt 0:00:00]} a3 {[%emt 0:00:17]} 56. Qf1+ {[%emt 0:00:31]} Ka5 {[%emt 0:00:55]} 57. Qb1 {[%emt 0:00:12]} Rc3 {[%emt 0:01:01]} 58. Qe1 {[%emt 0:01:01]} Kb4 {[%emt 0:00:01]} 59. Qxe6 {[%emt 0:00:45]} Rc1 {[%emt 0:01:10]} 60. Qb6+ {[%emt 0:01:13]} Kc3 {[%emt 0:00:15]} 61. Qe3+ {[%emt 0:00:19]} Kc2 {[%emt 0:00:29]} 62. Qe4+ {[%emt 0:01:01]} Kb3 {[%emt 0:00:30]} 63. Qd5+ {[%emt 0:00:00]} Rc4 {[%emt 0:00:26]} 64. Qb5+ {[%emt 0:00:20]} Kc3 {[%emt 0:00:19]} 65. Qe5+ {[%emt 0:00:41]} Kb3 {[%emt 0:00:40]} 66. Qb5+ {[%emt 0:00:04]} Kc3 {[%emt 0:01:25]} 67. Qe5+ {[%emt 0:00:30]} Kc2 {[%emt 0:00:30]} 68. Qf5+ {[%emt 0:00:00]} Kc3 {[%emt 0:00:00]} 69. Qe5+ {[%emt 0:00:00]} Kb4 {[%emt 0:00:27]} 70. Qb8+ {[%emt 0:00:28]} Ka4 {[%emt 0:00:30]} 71. Qb6 {[%emt 0:00:30]} Rb4 {[%emt 0:00:30]} 72. Qc6+ {[%emt 0:00:30]} Rb5 {[%emt 0:00:30]} 73. Qc2+ {[%emt 0:00:30]} Ka5 {[%emt 0:00:30]} 74. Qc7+ {[%emt 0:00:30]} Ka6 {[%emt 0:00:30]} 75. Qc6+ {[%emt 0:00:30]} Rb6 {[%emt 0:00:30]} 76. Qa8+ {[%emt 0:00:30]} Kb5 {[%emt 0:00:30]} 77. Qd5+ {[%emt 0:01:02]} Ka4 {[%emt 0:00:15]} 78. Qc4+ {[%emt 0:00:53]} Rb4 {[%emt 0:00:35]} 79. Qc2+ {[%emt 0:00:21]} Kb5 {[%emt 0:00:28]} 80. Qf5+ {[%emt 0:00:00]} Ka6 {[%emt 0:00:13]} 81. Qc8+ {[%emt 0:00:00]} Kb5 {[%emt 0:00:30]} 82. Qf5+ {[%emt 0:00:00]} Kc4 {[%emt 0:00:39]} 83. Qe4+ {[%emt 0:00:00]} Kc3 {[%emt 0:00:20]} 84. Qe5+ {[%emt 0:00:00]} Kc2 {[%emt 0:01:00]} 85. Qc5+ {[%emt 0:00:25]} Kb3 {[%emt 0:00:30]} 86. Qd5+ {[%emt 0:00:04]} Rc4 {[%emt 0:00:18]} 87. Qb5+ {[%emt 0:00:50]} Kc3 {[%emt 0:00:09]} 88. Qe5+ {[%emt 0:00:55]} Kc2 {[%emt 0:00:32]} 89. Qe2+ {[%emt 0:00:48]} Kb3 {[%emt 0:00:08]} 90. Qd3+ {[%emt 0:00:45]} Rc3 {[%emt 0:00:24]} 91. Qd5+ {[%emt 0:00:02]} Kc2 {[%emt 0:00:12]} 92. Qe4+ {[%emt 0:00:34]} Rd3 {[%emt 0:00:07]} 93. Qc4+ {[%emt 0:01:11]} Kd2 {[%emt 0:00:26]} 94. Qb4+ {[%emt 0:00:56]} Rc3 {[%emt 0:00:17]} 95. h4 {[%emt 0:00:43]} Kc2 {[%emt 0:00:30]} 96. Qe4+ {[%emt 0:00:30]} Kb3 {[%emt 0:00:38]} 97. Qd5+ {[%emt 0:00:30]} 1/2-1/2